[Event "*** Qualifier 2: Titled Tuesday 3|2 Blitz"]
[Site "Chess.com"]
[Date "2017.04.11"]
[Round "3"]
[White "RitvarsReimanis"]
[Black "TenisMaster"]
[Result "1/2-1/2"]
[WhiteElo "2415"]
[BlackElo "2641"]
[TimeControl "180+2"]
[EndTime "13:38:00 PDT"]
[Termination "Game drawn by repetition"]

1. d4 {[%clk 0:03:02]} 1... Nf6 {[%clk 0:03:00.6]} 2. c4 {[%clk 0:03:03]} 2...
e6 {[%clk 0:03:01.5]} 3. Nc3 {[%clk 0:03:04]} 3... Bb4 {[%clk 0:03:01.5]} 4. e3
{[%clk 0:03:05.5]} 4... O-O {[%clk 0:03:01.5]} 5. Ne2 {[%clk 0:03:07.4]} 5... d5
{[%clk 0:03:01.4]} 6. a3 {[%clk 0:03:08.9]} 6... Be7 {[%clk 0:03:02.2]} 7. cxd5
{[%clk 0:03:10.4]} 7... exd5 {[%clk 0:03:02.9]} 8. g3 {[%clk 0:03:12]} 8... c6
{[%clk 0:03:00]} 9. Bg2 {[%clk 0:03:13.5]} 9... Na6 {[%clk 0:02:59.9]} 10. O-O
{[%clk 0:03:15.4]} 10... Nc7 {[%clk 0:03:00.4]} 11. Re1 {[%clk 0:03:16.8]} 11...
Re8 {[%clk 0:03:00.2]} 12. Nf4 {[%clk 0:03:18.1]} 12... h6 {[%clk 0:02:49.2]}
13. b3 {[%clk 0:03:18.9]} 13... Bf5 {[%clk 0:02:48.3]} 14. Bb2 {[%clk
0:03:15.9]} 14... Bh7 {[%clk 0:02:48.9]} 15. Nd3 {[%clk 0:03:13]} 15... Ne6
{[%clk 0:02:31.8]} 16. Ne5 {[%clk 0:03:02.9]} 16... Nd7 {[%clk 0:02:32.4]} 17.
Nxd7 {[%clk 0:02:47.4]} 17... Qxd7 {[%clk 0:02:31.5]} 18. Rc1 {[%clk 0:02:41.6]}
18... Ng5 {[%clk 0:02:26.5]} 19. h4 {[%clk 0:02:28.8]} 19... Ne4 {[%clk
0:02:18.6]} 20. Nxe4 {[%clk 0:02:18.2]} 20... Bxe4 {[%clk 0:02:20.5]} 21. Bxe4
{[%clk 0:02:16]} 21... dxe4 {[%clk 0:02:22.4]} 22. Kg2 {[%clk 0:02:16.4]} 22...
Rad8 {[%clk 0:02:21.2]} 23. b4 {[%clk 0:02:15.2]} 23... Qe6 {[%clk 0:02:20.2]}
24. Qe2 {[%clk 0:01:54.9]} 24... Rd5 {[%clk 0:02:20.4]} 25. Rh1 {[%clk
0:01:53.6]} 25... Bd6 {[%clk 0:02:18]} 26. Rc2 {[%clk 0:01:49]} 26... a6 {[%clk
0:02:11.8]} 27. h5 {[%clk 0:01:49.6]} 27... Rf5 {[%clk 0:02:06]} 28. Rh4 {[%clk
0:01:42.4]} 28... Rf3 {[%clk 0:01:55.7]} 29. Rd2 {[%clk 0:00:37.5]} 29... Qf5
{[%clk 0:01:43.5]} 30. d5 {[%clk 0:00:26.8]} 30... cxd5 {[%clk 0:01:43.3]} 31.
Qd1 {[%clk 0:00:28]} 31... Re6 {[%clk 0:01:31.3]} 32. Rxd5 {[%clk 0:00:26.3]}
32... Rxf2+ {[%clk 0:01:31.5]} 33. Kg1 {[%clk 0:00:27.8]} 33... Qf3 {[%clk
0:01:20.2]} 34. Qxf3 {[%clk 0:00:24.9]} 34... Rxf3 {[%clk 0:01:22.1]} 35. Rg4
{[%clk 0:00:20.4]} 35... f6 {[%clk 0:01:17.1]} 36. Bd4 {[%clk 0:00:19.5]} 36...
Rxg3+ {[%clk 0:01:14.7]} 37. Rxg3 {[%clk 0:00:19.9]} 37... Bxg3 {[%clk
0:01:16.6]} 38. Rd7 {[%clk 0:00:21.1]} 38... b5 {[%clk 0:01:16.8]} 39. Kg2
{[%clk 0:00:20.9]} 39... Be5 {[%clk 0:01:17]} 40. Bc5 {[%clk 0:00:21.3]} 40...
f5 {[%clk 0:01:15.6]} 41. Kh3 {[%clk 0:00:19.4]} 41... f4 {[%clk 0:01:08.6]} 42.
exf4 {[%clk 0:00:20.3]} 42... Bxf4 {[%clk 0:01:09.2]} 43. Kg4 {[%clk 0:00:21.9]}
43... Bc1 {[%clk 0:00:35.8]} 44. Kf5 {[%clk 0:00:22.1]} 44... Rf6+ {[%clk
0:00:36]} 45. Kxe4 {[%clk 0:00:22.5]} 45... Bxa3 {[%clk 0:00:36.7]} 46. Rd8+
{[%clk 0:00:18.2]} 46... Kh7 {[%clk 0:00:37.2]} 47. Rd7 {[%clk 0:00:19.7]} 47...
Bc1 {[%clk 0:00:24.7]} 48. Bd4 {[%clk 0:00:19.5]} 48... Rf4+ {[%clk 0:00:25.9]}
49. Ke5 {[%clk 0:00:17.4]} 49... Rg4 {[%clk 0:00:27.6]} 50. Kf5 {[%clk
0:00:15.9]} 50... Rg5+ {[%clk 0:00:27.7]} 51. Ke4 {[%clk 0:00:16.3]} 51... Ba3
{[%clk 0:00:28.4]} 52. Bc3 {[%clk 0:00:16.1]} 52... Bc1 {[%clk 0:00:27.8]} 53.
Ra7 {[%clk 0:00:15.6]} 53... Kg8 {[%clk 0:00:27.1]} 54. Ra8+ {[%clk 0:00:16.5]}
54... Kf7 {[%clk 0:00:27.9]} 55. Ra7+ {[%clk 0:00:18.1]} 55... Kg8 {[%clk
0:00:29.1]} 56. Ra8+ {[%clk 0:00:19.4]} 56... Kh7 {[%clk 0:00:30.1]} 57. Ra7
{[%clk 0:00:20.7]} 57... Ba3 {[%clk 0:00:30.3]} 58. Kf4 {[%clk 0:00:18.9]} 58...
Bc1+ {[%clk 0:00:27.8]} 59. Ke4 {[%clk 0:00:20.1]} 59... Kg8 {[%clk 0:00:25.1]}
60. Ra8+ {[%clk 0:00:20.7]} 1/2-1/2

[Event "*** Qualifier 2: Titled Tuesday 3|2 Blitz"]
[Site "Chess.com"]
[Date "2017.04.11"]
[Round "3"]
[White "Ginger_GM"]
[Black "JoachimBN"]
[Result "0-1"]
[WhiteElo "2431"]
[BlackElo "2544"]
[TimeControl "180+2"]
[EndTime "13:38:01 PDT"]
[Termination "JoachimBN won by resignation"]

1. d4 {[%clk 0:03:02]} 1... e6 {[%clk 0:02:58.9]} 2. Nf3 {[%clk 0:02:59.8]} 2...
Nf6 {[%clk 0:02:59.6]} 3. c4 {[%clk 0:03:00.3]} 3... c5 {[%clk 0:02:57.8]} 4. d5
{[%clk 0:02:58.9]} 4... exd5 {[%clk 0:02:59.7]} 5. cxd5 {[%clk 0:02:59.4]} 5...
d6 {[%clk 0:02:59.8]} 6. Nc3 {[%clk 0:02:57.5]} 6... g6 {[%clk 0:03:00]} 7. Bf4
{[%clk 0:02:58.5]} 7... a6 {[%clk 0:02:59.4]} 8. a4 {[%clk 0:02:58.5]} 8... Bg7
{[%clk 0:02:59.8]} 9. e3 {[%clk 0:02:59.5]} 9... O-O {[%clk 0:02:59.7]} 10. h3
{[%clk 0:03:00.5]} 10... Re8 {[%clk 0:02:53]} 11. Be2 {[%clk 0:03:00.8]} 11...
Ne4 {[%clk 0:02:42]} 12. Nxe4 {[%clk 0:02:53.2]} 12... Rxe4 {[%clk 0:02:43.9]}
13. O-O {[%clk 0:02:50.4]} 13... Rb4 {[%clk 0:02:37]} 14. Nd2 {[%clk 0:02:44.7]}
14... Bxb2 {[%clk 0:02:25]} 15. Rb1 {[%clk 0:02:22.1]} 15... Bf5 {[%clk
0:02:25.5]} 16. e4 {[%clk 0:02:00.2]} 16... Bd7 {[%clk 0:02:25.6]} 17. Nc4
{[%clk 0:01:55.4]} 17... Bxa4 {[%clk 0:02:26.2]} 18. Qd2 {[%clk 0:01:47.7]}
18... Bf6 {[%clk 0:02:25.3]} 19. Rxb4 {[%clk 0:01:46.7]} 19... cxb4 {[%clk
0:02:27.2]} 20. Nxd6 {[%clk 0:01:42]} 20... Bc3 {[%clk 0:02:24]} 21. Qe3 {[%clk
0:01:40.6]} 21... Nd7 {[%clk 0:02:25.5]} 22. e5 {[%clk 0:01:33]} 22... Qe7
{[%clk 0:02:21.2]} 23. e6 {[%clk 0:01:29.1]} 23... fxe6 {[%clk 0:02:23.1]} 24.
dxe6 {[%clk 0:01:30]} 24... Nf6 {[%clk 0:01:52.9]} 25. Bf3 {[%clk 0:01:15]}
25... Bc6 {[%clk 0:01:54]} 26. Bxc6 {[%clk 0:00:49]} 26... bxc6 {[%clk
0:01:55.9]} 27. Nc4 {[%clk 0:00:36.8]} 27... Nd5 {[%clk 0:01:52.5]} 28. Qe4
{[%clk 0:00:34.9]} 28... Nxf4 {[%clk 0:01:53.1]} 29. Qxf4 {[%clk 0:00:36.5]}
29... Qxe6 {[%clk 0:01:53.8]} 30. Rd1 {[%clk 0:00:35.8]} 30... Rf8 {[%clk
0:01:47.1]} 31. Qh4 {[%clk 0:00:23.2]} 31... Qe2 {[%clk 0:01:32.9]} 32. Ne3
{[%clk 0:00:20.9]} 32... Be1 {[%clk 0:01:27.5]} 33. Kh2 {[%clk 0:00:13.2]} 33...
Bxf2 {[%clk 0:01:23.4]} 34. Qc4+ {[%clk 0:00:13.7]} 34... Qxc4 {[%clk 0:01:24]}
35. Nxc4 {[%clk 0:00:15.6]} 35... c5 {[%clk 0:01:18.9]} 36. Rd7 {[%clk
0:00:15.4]} 36... h5 {[%clk 0:01:17.6]} 37. Ne5 {[%clk 0:00:16.4]} 37... h4
{[%clk 0:00:56.8]} 38. Nxg6 {[%clk 0:00:17]} 38... Rf6 {[%clk 0:00:58.2]} 39.
Ne7+ {[%clk 0:00:17.1]} 39... Kf8 {[%clk 0:00:59.3]} 40. Nd5 {[%clk 0:00:18.4]}
40... Rd6 {[%clk 0:00:57]} 41. Rxd6 {[%clk 0:00:15.2]} 41... Bg3+ {[%clk
0:00:58.2]} 42. Kg1 {[%clk 0:00:16.6]} 42... Bxd6 {[%clk 0:01:00.1]} 43. Kf1
{[%clk 0:00:17.5]} 43... c4 {[%clk 0:01:01.3]} 44. Ke2 {[%clk 0:00:18.7]} 44...
a5 {[%clk 0:00:58.7]} 45. Ne3 {[%clk 0:00:19.8]} 45... c3 {[%clk 0:00:58.5]} 46.
Kd3 {[%clk 0:00:21.1]} 46... Bc5 {[%clk 0:00:56.3]} 47. Nf5 {[%clk 0:00:19.6]}
47... Be7 {[%clk 0:00:52.8]} 48. Nd4 {[%clk 0:00:20.1]} 48... Bf6 {[%clk
0:00:52.4]} 49. Nc6 {[%clk 0:00:20.4]} 49... b3 {[%clk 0:00:49.8]} 50. Nxa5
{[%clk 0:00:20.4]} 50... b2 {[%clk 0:00:51]} 51. Kc2 {[%clk 0:00:21.2]} 51...
Kf7 {[%clk 0:00:51.9]} 52. Nc4 {[%clk 0:00:17.5]} 52... Kg6 {[%clk 0:00:52.8]}
53. Ne3 {[%clk 0:00:16.7]} 53... Kg5 {[%clk 0:00:53.1]} 54. Nd5 {[%clk
0:00:16.2]} 54... Bh8 {[%clk 0:00:54.4]} 55. Ne3 {[%clk 0:00:11.2]} 55... Kf4
{[%clk 0:00:55.1]} 56. Nf1 {[%clk 0:00:10.9]} 56... Bd4 {[%clk 0:00:55.6]} 57.
Nh2 {[%clk 0:00:11.6]} 57... Kg3 {[%clk 0:00:55.7]} 58. Nf3 {[%clk 0:00:13.2]}
58... Bf6 {[%clk 0:00:57.2]} 59. Kb1 {[%clk 0:00:12.7]} 59... Kxg2 {[%clk
0:00:57.9]} 0-1

[Event "*** Qualifier 2: Titled Tuesday 3|2 Blitz"]
[Site "Chess.com"]
[Date "2017.04.11"]
[Round "3"]
[White "Spartakus1975"]
[Black "Bugcrusher"]
[Result "1-0"]
[WhiteElo "2538"]
[BlackElo "2390"]
[TimeControl "180+2"]
[EndTime "13:38:11 PDT"]
[Termination "Spartakus1975 won by checkmate"]

1. e4 {[%clk 0:03:02]} 1... c6 {[%clk 0:03:00.9]} 2. Nf3 {[%clk 0:03:01.1]} 2...
d5 {[%clk 0:03:01.1]} 3. Nc3 {[%clk 0:03:02.7]} 3... a6 {[%clk 0:03:02.1]} 4. d4
{[%clk 0:03:00.6]} 4... Bg4 {[%clk 0:03:01]} 5. h3 {[%clk 0:03:00.4]} 5... Bh5
{[%clk 0:02:58.2]} 6. Bd3 {[%clk 0:02:56.1]} 6... e6 {[%clk 0:02:57.6]} 7. O-O
{[%clk 0:02:52.1]} 7... Nf6 {[%clk 0:02:56.7]} 8. e5 {[%clk 0:02:51.5]} 8...
Nfd7 {[%clk 0:02:55.8]} 9. g4 {[%clk 0:02:52.4]} 9... Bg6 {[%clk 0:02:55.7]} 10.
Ne2 {[%clk 0:02:54]} 10... c5 {[%clk 0:02:55.8]} 11. c3 {[%clk 0:02:55.2]} 11...
Nc6 {[%clk 0:02:55.9]} 12. a3 {[%clk 0:02:55.2]} 12... Be7 {[%clk 0:02:54.7]}
13. Kg2 {[%clk 0:02:55.1]} 13... cxd4 {[%clk 0:02:52.9]} 14. cxd4 {[%clk
0:02:55.5]} 14... Nb6 {[%clk 0:02:52]} 15. b3 {[%clk 0:02:51.1]} 15... Qd7
{[%clk 0:02:45.5]} 16. Be3 {[%clk 0:02:49.2]} 16... Na7 {[%clk 0:02:43.7]} 17.
Nf4 {[%clk 0:02:38.4]} 17... O-O {[%clk 0:02:41.3]} 18. h4 {[%clk 0:02:33.2]}
18... Rac8 {[%clk 0:02:38.7]} 19. h5 {[%clk 0:02:33.3]} 19... Bxd3 {[%clk
0:02:38.1]} 20. Qxd3 {[%clk 0:02:34.2]} 20... Nb5 {[%clk 0:02:38.4]} 21. a4
{[%clk 0:02:33.2]} 21... Nc3 {[%clk 0:02:32.6]} 22. Nd2 {[%clk 0:02:23.1]} 22...
Bg5 {[%clk 0:02:06.9]} 23. a5 {[%clk 0:01:58]} 23... Na8 {[%clk 0:02:00.5]} 24.
Rfc1 {[%clk 0:01:58.5]} 24... Nb5 {[%clk 0:01:53.1]} 25. Nh3 {[%clk 0:01:47]}
25... Bxe3 {[%clk 0:01:41.2]} 26. Qxe3 {[%clk 0:01:47.9]} 26... Rxc1 {[%clk
0:01:38.6]} 27. Rxc1 {[%clk 0:01:47.8]} 27... Rc8 {[%clk 0:01:39.6]} 28. Rxc8+
{[%clk 0:01:44]} 28... Qxc8 {[%clk 0:01:41.5]} 29. h6 {[%clk 0:01:45.3]} 29...
g6 {[%clk 0:01:41]} 30. Qf4 {[%clk 0:01:43.8]} 30... Nac7 {[%clk 0:01:41.4]} 31.
Ng5 {[%clk 0:01:38]} 31... Qd7 {[%clk 0:01:42]} 32. Ndf3 {[%clk 0:01:32.4]}
32... Ne8 {[%clk 0:01:39.5]} 33. Ne1 {[%clk 0:01:30.1]} 33... Qe7 {[%clk
0:01:35.1]} 34. Nd3 {[%clk 0:01:30.6]} 34... Nxd4 {[%clk 0:01:30.2]} 35. Nxf7
{[%clk 0:01:00.6]} 35... Ne2 {[%clk 0:00:55.6]} 36. Qe3 {[%clk 0:01:01]} 36...
Qxf7 {[%clk 0:00:52.4]} 37. Qxe2 {[%clk 0:01:01.9]} 37... Qc7 {[%clk 0:00:53.9]}
38. Qf3 {[%clk 0:00:55.4]} 38... Qc3 {[%clk 0:00:50.1]} 39. b4 {[%clk
0:00:51.2]} 39... Qd4 {[%clk 0:00:49]} 40. Kg3 {[%clk 0:00:47.6]} 40... Qc3
{[%clk 0:00:43.7]} 41. Qe3 {[%clk 0:00:45.7]} 41... Nc7 {[%clk 0:00:40.4]} 42.
Kg2 {[%clk 0:00:23.3]} 42... d4 {[%clk 0:00:37]} 43. Qf3 {[%clk 0:00:20.8]}
43... Nd5 {[%clk 0:00:38.1]} 44. Nc5 {[%clk 0:00:17.7]} 44... Qxb4 {[%clk
0:00:18.5]} 45. Nxe6 {[%clk 0:00:15.6]} 45... d3 {[%clk 0:00:13.2]} 46. Ng5
{[%clk 0:00:11.1]} 46... Nf4+ {[%clk 0:00:13.7]} 47. Kg3 {[%clk 0:00:12.8]}
47... d2 {[%clk 0:00:12.6]} 48. Ne4 {[%clk 0:00:09.3]} 48... g5 {[%clk
0:00:10.5]} 49. Nxg5 {[%clk 0:00:09.3]} 49... Qd4 {[%clk 0:00:08.6]} 50. Qb3+
{[%clk 0:00:09.9]} 50... Nd5 {[%clk 0:00:09.3]} 51. Qxb7 {[%clk 0:00:09.5]}
51... Qxe5+ {[%clk 0:00:10.4]} 52. Kh4 {[%clk 0:00:09.8]} 52... d1=Q {[%clk
0:00:08.5]} 53. Qf7+ {[%clk 0:00:08.9]} 53... Kh8 {[%clk 0:00:09.4]} 54. Qf8#
{[%clk 0:00:09.9]} 1-0

[Event "*** Qualifier 2: Titled Tuesday 3|2 Blitz"]
[Site "Chess.com"]
[Date "2017.04.11"]
[Round "3"]
[White "Alexander_Moskalenko"]
[Black "Zhani-Z"]
[Result "1-0"]
[WhiteElo "2654"]
[BlackElo "2415"]
[TimeControl "180+2"]
[EndTime "13:38:41 PDT"]
[Termination "Alexander_Moskalenko won on time"]

1. e4 {[%clk 0:03:00.9]} 1... e5 {[%clk 0:03:00]} 2. Nf3 {[%clk 0:03:01.7]} 2...
Nc6 {[%clk 0:03:01.4]} 3. Bc4 {[%clk 0:03:03.4]} 3... Bc5 {[%clk 0:03:01.6]} 4.
O-O {[%clk 0:03:02.7]} 4... d6 {[%clk 0:03:00.6]} 5. c3 {[%clk 0:03:03.9]} 5...
Nf6 {[%clk 0:03:00.7]} 6. d3 {[%clk 0:03:05.5]} 6... Bb6 {[%clk 0:03:01.1]} 7.
a4 {[%clk 0:03:03.2]} 7... a5 {[%clk 0:02:53.3]} 8. Na3 {[%clk 0:03:03.7]} 8...
Ne7 {[%clk 0:02:53.5]} 9. Re1 {[%clk 0:02:42]} 9... Ng6 {[%clk 0:02:51.3]} 10.
h3 {[%clk 0:02:43.1]} 10... c6 {[%clk 0:02:49.2]} 11. Bb3 {[%clk 0:02:37.7]}
11... O-O {[%clk 0:02:49.2]} 12. Nc4 {[%clk 0:02:28.5]} 12... Bc7 {[%clk
0:02:49.9]} 13. Ne3 {[%clk 0:02:29.8]} 13... Re8 {[%clk 0:02:40.4]} 14. Nf5
{[%clk 0:02:19.6]} 14... d5 {[%clk 0:02:37.7]} 15. Ng3 {[%clk 0:02:18.5]} 15...
h6 {[%clk 0:02:33.5]} 16. Qc2 {[%clk 0:02:00.3]} 16... Be6 {[%clk 0:02:33.9]}
17. Nf1 {[%clk 0:01:52.7]} 17... Qd7 {[%clk 0:02:32.4]} 18. N3h2 {[%clk
0:01:33]} 18... Rad8 {[%clk 0:02:27.8]} 19. Bd2 {[%clk 0:01:34]} 19... dxe4
{[%clk 0:01:56.1]} 20. Bxe6 {[%clk 0:01:29.3]} 20... Qxe6 {[%clk 0:01:53.7]} 21.
dxe4 {[%clk 0:01:30.7]} 21... Nf4 {[%clk 0:01:44]} 22. Ng3 {[%clk 0:01:21.9]}
22... Bb6 {[%clk 0:01:36.4]} 23. Be3 {[%clk 0:01:15.2]} 23... Bxe3 {[%clk
0:01:36.7]} 24. Rxe3 {[%clk 0:01:17.1]} 24... Rd7 {[%clk 0:01:32.7]} 25. Rd1
{[%clk 0:00:55.4]} 25... Red8 {[%clk 0:01:32.5]} 26. Rxd7 {[%clk 0:00:56.9]}
26... Qxd7 {[%clk 0:01:28.8]} 27. Nf3 {[%clk 0:00:46.5]} 27... Qd1+ {[%clk
0:01:28.3]} 28. Qxd1 {[%clk 0:00:48.1]} 28... Rxd1+ {[%clk 0:01:29]} 29. Re1
{[%clk 0:00:50]} 29... Rxe1+ {[%clk 0:01:20.2]} 30. Nxe1 {[%clk 0:00:51]} 30...
Nd7 {[%clk 0:01:21.2]} 31. Nf5 {[%clk 0:00:48.1]} 31... Nc5 {[%clk 0:01:14.4]}
32. Nd6 {[%clk 0:00:49.1]} 32... Kf8 {[%clk 0:00:45.5]} 33. Nc4 {[%clk
0:00:39.4]} 33... Nxa4 {[%clk 0:00:44.5]} 34. Nxa5 {[%clk 0:00:40.4]} 34... Nxb2
{[%clk 0:00:45.3]} 35. Nxb7 {[%clk 0:00:42]} 35... Ne2+ {[%clk 0:00:45.5]} 36.
Kf1 {[%clk 0:00:42.6]} 36... Nxc3 {[%clk 0:00:46.5]} 37. Nf3 {[%clk 0:00:40.6]}
37... f6 {[%clk 0:00:46.7]} 38. Nd8 {[%clk 0:00:41.4]} 38... Nxe4 {[%clk
0:00:29]} 39. Ke2 {[%clk 0:00:42.4]} 39... c5 {[%clk 0:00:27.5]} 40. Ke3 {[%clk
0:00:38]} 40... Ke7 {[%clk 0:00:17.8]} 41. Nc6+ {[%clk 0:00:37.5]} 41... Kd6
{[%clk 0:00:18.7]} 42. Ncxe5 {[%clk 0:00:37.9]} 42... fxe5 {[%clk 0:00:19.4]}
43. Kxe4 {[%clk 0:00:39.5]} 43... Nd1 {[%clk 0:00:19.1]} 44. Nxe5 {[%clk
0:00:40.6]} 44... Nxf2+ {[%clk 0:00:19.5]} 45. Kf5 {[%clk 0:00:42.3]} 45... Kd5
{[%clk 0:00:17.5]} 46. Nf3 {[%clk 0:00:29.9]} 46... c4 {[%clk 0:00:16.3]} 47.
Ne1 {[%clk 0:00:27.1]} 47... c3 {[%clk 0:00:14.4]} 48. Kg6 {[%clk 0:00:28.3]}
48... Kd4 {[%clk 0:00:10.6]} 49. Kxg7 {[%clk 0:00:29.3]} 49... Ke3 {[%clk
0:00:09.2]} 50. Nc2+ {[%clk 0:00:28.6]} 50... Kd2 {[%clk 0:00:09.9]} 51. Na3
{[%clk 0:00:25.2]} 51... h5 {[%clk 0:00:07]} 52. Kg6 {[%clk 0:00:24.7]} 52... h4
{[%clk 0:00:06.7]} 53. Kg5 {[%clk 0:00:25.7]} 53... Kc1 {[%clk 0:00:04.1]} 54.
Nb5 {[%clk 0:00:17.2]} 1-0

[Event "*** Qualifier 2: Titled Tuesday 3|2 Blitz"]
[Site "Chess.com"]
[Date "2017.04.11"]
[Round "3"]
[White "evgenyermolaev"]
[Black "prochn"]
[Result "1-0"]
[WhiteElo "2380"]
[BlackElo "2223"]
[TimeControl "180+2"]
[EndTime "13:38:48 PDT"]
[Termination "evgenyermolaev won by checkmate"]

1. e4 {[%clk 0:03:02]} 1... c6 {[%clk 0:03:00.8]} 2. d4 {[%clk 0:03:01.5]} 2...
d5 {[%clk 0:03:01.7]} 3. f3 {[%clk 0:03:02.6]} 3... dxe4 {[%clk 0:02:56.5]} 4.
fxe4 {[%clk 0:03:03.4]} 4... e5 {[%clk 0:02:56.9]} 5. Nf3 {[%clk 0:03:04.4]}
5... Bg4 {[%clk 0:02:48.1]} 6. Bc4 {[%clk 0:02:59.7]} 6... Nf6 {[%clk
0:02:32.4]} 7. Bxf7+ {[%clk 0:02:58.3]} 7... Kxf7 {[%clk 0:02:31.9]} 8. Nxe5+
{[%clk 0:02:57.9]} 8... Ke8 {[%clk 0:02:29.1]} 9. Nxg4 {[%clk 0:02:58]} 9...
Nxg4 {[%clk 0:02:25.9]} 10. Qxg4 {[%clk 0:02:57.3]} 10... Qxd4 {[%clk
0:02:09.1]} 11. Qc8+ {[%clk 0:02:45.7]} 11... Qd8 {[%clk 0:02:06.1]} 12. Qxd8+
{[%clk 0:02:43.5]} 12... Kxd8 {[%clk 0:02:06.6]} 13. Nc3 {[%clk 0:02:43.3]}
13... Bb4 {[%clk 0:02:06.6]} 14. Bg5+ {[%clk 0:02:42.5]} 14... Ke8 {[%clk
0:02:03.5]} 15. O-O-O {[%clk 0:02:42.9]} 15... Nd7 {[%clk 0:02:00.7]} 16. e5
{[%clk 0:01:59.2]} 16... Be7 {[%clk 0:01:54.3]} 17. Ne4 {[%clk 0:01:23.3]} 17...
Bxg5+ {[%clk 0:01:32.8]} 18. Nxg5 {[%clk 0:01:23.4]} 18... Nc5 {[%clk
0:01:20.9]} 19. b4 {[%clk 0:01:18.1]} 19... h6 {[%clk 0:01:18.9]} 20. bxc5
{[%clk 0:01:02.6]} 20... hxg5 {[%clk 0:01:20.1]} 21. e6 {[%clk 0:01:01.4]} 21...
Rd8 {[%clk 0:01:16.7]} 22. h3 {[%clk 0:01:02.3]} 22... Ke7 {[%clk 0:01:17.1]}
23. Rhe1 {[%clk 0:00:45.5]} 23... Rxd1+ {[%clk 0:01:16.4]} 24. Kxd1 {[%clk
0:00:46.6]} 24... Rd8+ {[%clk 0:01:16.8]} 25. Ke2 {[%clk 0:00:28.7]} 25... Kxe6
{[%clk 0:01:14.4]} 26. Kf3+ {[%clk 0:00:29.3]} 26... Kf5 {[%clk 0:01:13.2]} 27.
Re7 {[%clk 0:00:29]} 27... Rd5 {[%clk 0:01:07]} 28. Rxg7 {[%clk 0:00:19]} 28...
Rxc5 {[%clk 0:01:06.5]} 29. Rf7+ {[%clk 0:00:20.2]} 29... Kg6 {[%clk 0:01:06.2]}
30. Rxb7 {[%clk 0:00:21.2]} 30... Rc3+ {[%clk 0:01:03.6]} 31. Kg4 {[%clk
0:00:21.6]} 31... Rc4+ {[%clk 0:01:04.3]} 32. Kg3 {[%clk 0:00:22.4]} 32... Rc3+
{[%clk 0:01:03.2]} 33. Kh2 {[%clk 0:00:23.3]} 33... a5 {[%clk 0:00:58.5]} 34.
Ra7 {[%clk 0:00:23.1]} 34... Rc5 {[%clk 0:00:57.9]} 35. Ra6 {[%clk 0:00:08.7]}
35... Kf5 {[%clk 0:00:58.1]} 36. Kg3 {[%clk 0:00:09.9]} 36... Rc3+ {[%clk
0:00:58]} 37. Kh2 {[%clk 0:00:11.3]} 37... Rc5 {[%clk 0:00:58.7]} 38. Kg3 {[%clk
0:00:12.5]} 38... Rc3+ {[%clk 0:00:59.3]} 39. Kh2 {[%clk 0:00:13.9]} 39... Rc5
{[%clk 0:00:59.5]} 40. Ra8 {[%clk 0:00:15]} 40... Ke4 {[%clk 0:00:59.3]} 41. Kg3
{[%clk 0:00:15.4]} 41... Kd4 {[%clk 0:00:55.8]} 42. Kg4 {[%clk 0:00:11.3]} 42...
Kc3 {[%clk 0:00:56.9]} 43. g3 {[%clk 0:00:10.5]} 43... Kxc2 {[%clk 0:00:57.9]}
44. h4 {[%clk 0:00:11.9]} 44... gxh4 {[%clk 0:00:58.2]} 45. gxh4 {[%clk
0:00:13.8]} 45... Kb2 {[%clk 0:00:59.1]} 46. h5 {[%clk 0:00:14.6]} 46... Rc4+
{[%clk 0:00:52.7]} 47. Kg5 {[%clk 0:00:15.5]} 47... a4 {[%clk 0:00:54]} 48. h6
{[%clk 0:00:15.6]} 48... Rc5+ {[%clk 0:00:35.8]} 49. Kg6 {[%clk 0:00:13.1]}
49... Rc4 {[%clk 0:00:36.8]} 50. h7 {[%clk 0:00:08]} 50... Rh4 {[%clk
0:00:37.2]} 51. Rxa4 {[%clk 0:00:04.9]} 51... Rxa4 {[%clk 0:00:32.8]} 52. h8=Q+
{[%clk 0:00:05.5]} 52... Kxa2 {[%clk 0:00:32.2]} 53. Qc3 {[%clk 0:00:06.2]}
53... c5 {[%clk 0:00:20.5]} 54. Qc2+ {[%clk 0:00:04.6]} 54... Ka3 {[%clk
0:00:21.4]} 55. Qxc5+ {[%clk 0:00:05.7]} 55... Rb4 {[%clk 0:00:22.2]} 56. Kf5
{[%clk 0:00:02.7]} 56... Kb3 {[%clk 0:00:22.8]} 57. Ke6 {[%clk 0:00:04]} 57...
Ka4 {[%clk 0:00:23.3]} 58. Qa7+ {[%clk 0:00:04.8]} 58... Kb3 {[%clk 0:00:23.9]}
59. Qe3+ {[%clk 0:00:06.7]} 59... Ka4 {[%clk 0:00:24.7]} 60. Kd5 {[%clk
0:00:07.5]} 60... Rb5+ {[%clk 0:00:25.7]} 61. Kc4 {[%clk 0:00:07.3]} 61... Rb4+
{[%clk 0:00:26.8]} 62. Kc5 {[%clk 0:00:08.7]} 62... Rb5+ {[%clk 0:00:27.9]} 63.
Kc6 {[%clk 0:00:10]} 63... Rb4 {[%clk 0:00:28]} 64. Qc3 {[%clk 0:00:10.1]} 64...
Rb3 {[%clk 0:00:27.1]} 65. Qc4+ {[%clk 0:00:09.2]} 65... Rb4 {[%clk 0:00:28.1]}
66. Qa2# {[%clk 0:00:10.2]} 1-0